[Event "January 9 Late 2024"]
[Site "https://www.chess.com"]
[Date "2024.01.09"]
[Round "1"]
[White "Troff, Kayden"]
[Black "Plotnikov, Pavel"]
[Result "1-0"]
[Board "88"]
[TimeControl "180+1"]
[WhiteFideId "2047896"]
[BlackFideId "4170342"]
[WhiteElo "2823"]
[BlackElo "2456"]
[WhiteTeam "USA"]
[BlackTeam "RUS"]
[WhiteClock "0:00:18"]
[BlackClock "0:00:00"]

1. d4 {[%clk 0:03:00]}  e6 {[%clk 0:02:59]} 2. Nf3 {[%clk 0:03:01]}  f5 {[%clk 0:02:59]} 3. Bg5 {[%clk 0:02:56]}  Nf6 {[%clk 0:02:58]} 4. c4 {[%clk 0:02:55]}  b6 {[%clk 0:02:56]} 5. Nc3 {[%clk 0:02:54]}  Bb7 {[%clk 0:02:56]} 6. a3 {[%clk 0:02:53]}  h6 {[%clk 0:02:54]} 7. Bxf6 {[%clk 0:02:52]}  Qxf6 {[%clk 0:02:55]} 8. Qd3 {[%clk 0:02:49]}  g5 {[%clk 0:02:43]} 9. e4 {[%clk 0:02:45]}  fxe4 {[%clk 0:02:33]} 10. Nxe4 {[%clk 0:02:42]}  Qf5 {[%clk 0:02:32]} 11. Nfd2 {[%clk 0:02:24]}  Bg7 {[%clk 0:02:27]} 12. f3 {[%clk 0:02:13]}  Nc6 {[%clk 0:02:26]} 13. d5 {[%clk 0:02:09]}  Ne5 {[%clk 0:02:20]} 14. Qb3 {[%clk 0:02:08]}  g4 {[%clk 0:02:07]} 15. Be2 {[%clk 0:01:55]}  gxf3 {[%clk 0:01:46]} 16. gxf3 {[%clk 0:01:51]}  exd5 {[%clk 0:01:45]} 17. cxd5 {[%clk 0:01:49]}  Ng6 {[%clk 0:01:10]} 18. Rc1 {[%clk 0:01:41]}  Bxd5 {[%clk 0:01:04]} 19. Bc4 {[%clk 0:01:33]}  Nf4 {[%clk 0:01:00]} 20. Bxd5 {[%clk 0:01:01]}  Qxd5 {[%clk 0:00:55]} 21. Rxc7 {[%clk 0:00:43]}  Nd3+ {[%clk 0:00:47]} 22. Ke2 {[%clk 0:00:40]}  Qxb3 {[%clk 0:00:43]} 23. Nxb3 {[%clk 0:00:41]}  Nf4+ {[%clk 0:00:40]} 24. Kf2 {[%clk 0:00:34]}  Bxb2 {[%clk 0:00:36]} 25. Rd1 {[%clk 0:00:32]}  O-O {[%clk 0:00:26]} 26. Rdxd7 {[%clk 0:00:28]}  Rae8 {[%clk 0:00:24]} 27. Kg3 {[%clk 0:00:25]}  Be5 {[%clk 0:00:22]} 28. Rxa7 {[%clk 0:00:22]}  Ne6+ {[%clk 0:00:15]} 29. Kg2 {[%clk 0:00:20]}  Nf4+ {[%clk 0:00:15]} 30. Kf2 {[%clk 0:00:20]}  Nh3+ {[%clk 0:00:15]} 31. Ke3 {[%clk 0:00:20]}  Bf4+ {[%clk 0:00:11]} 32. Ke2 {[%clk 0:00:19]}  Ng1+ {[%clk 0:00:10]} 33. Kf2 {[%clk 0:00:18]}  Nh3+ {[%clk 0:00:06]} 34. Kg2 {[%clk 0:00:18]}  Ng5 {[%clk 0:00:04]} 35. Nxg5 {[%clk 0:00:18]}  Re2+ {[%clk 0:00:03]} 36. Kf1 {[%clk 0:00:18]}  Rb2 {[%clk 0:00:00]} 37. Rg7+ {[%clk 0:00:18]} 1-0

[Event "January 9 Late 2024"]
[Site "https://www.chess.com"]
[Date "2024.01.09"]
[Round "1"]
[White "Gokerkan, Cem Kaan"]
[Black "Gomes, Luiz Alexandre de Souza"]
[Result "1-0"]
[Board "90"]
[TimeControl "180+1"]
[WhiteFideId "6336760"]
[BlackFideId "2102790"]
[WhiteElo "2814"]
[BlackElo "2455"]
[WhiteTeam "TUR"]
[BlackTeam "BRA"]
[WhiteClock "0:00:52"]
[BlackClock "0:00:10"]

1. e4 {[%clk 0:03:00]}  c5 {[%clk 0:02:51]} 2. Nf3 {[%clk 0:03:00]}  d6 {[%clk 0:02:52]} 3. d4 {[%clk 0:03:00]}  cxd4 {[%clk 0:02:52]} 4. Nxd4 {[%clk 0:03:01]}  Nf6 {[%clk 0:02:52]} 5. Nc3 {[%clk 0:03:02]}  a6 {[%clk 0:02:53]} 6. Bc4 {[%clk 0:03:01]}  e6 {[%clk 0:02:53]} 7. Be3 {[%clk 0:03:01]}  Be7 {[%clk 0:02:53]} 8. Bb3 {[%clk 0:02:59]}  Qc7 {[%clk 0:02:53]} 9. g4 {[%clk 0:02:59]}  h6 {[%clk 0:02:52]} 10. f3 {[%clk 0:02:49]}  Nc6 {[%clk 0:02:52]} 11. Qe2 {[%clk 0:02:48]}  Nxd4 {[%clk 0:02:52]} 12. Bxd4 {[%clk 0:02:49]}  b5 {[%clk 0:02:52]} 13. O-O-O {[%clk 0:02:47]}  Bb7 {[%clk 0:02:52]} 14. h4 {[%clk 0:02:47]}  Nd7 {[%clk 0:02:42]} 15. Bxg7 {[%clk 0:02:44]}  Rh7 {[%clk 0:02:41]} 16. Bd4 {[%clk 0:02:43]}  Ne5 {[%clk 0:02:40]} 17. f4 {[%clk 0:02:37]}  Nc4 {[%clk 0:02:33]} 18. g5 {[%clk 0:02:33]}  Rc8 {[%clk 0:02:29]} 19. Kb1 {[%clk 0:02:29]}  e5 {[%clk 0:02:08]} 20. fxe5 {[%clk 0:02:29]}  dxe5 {[%clk 0:02:09]} 21. Be3 {[%clk 0:01:34]}  Nxb2 {[%clk 0:02:08]} 22. Nd5 {[%clk 0:01:33]}  Bxd5 {[%clk 0:02:07]} 23. Rxd5 {[%clk 0:01:30]}  Nc4 {[%clk 0:02:05]} 24. Bc1 {[%clk 0:01:23]}  hxg5 {[%clk 0:02:03]} 25. Qg4 {[%clk 0:01:18]}  Nb6 {[%clk 0:01:32]} 26. Rd3 {[%clk 0:01:07]}  a5 {[%clk 0:01:31]} 27. Qf5 {[%clk 0:01:05]}  Rg7 {[%clk 0:01:18]} 28. hxg5 {[%clk 0:01:02]}  a4 {[%clk 0:01:15]} 29. Rh8+ {[%clk 0:01:02]}  Bf8 {[%clk 0:01:16]} 30. Ba3 {[%clk 0:00:59]}  b4 {[%clk 0:00:12]} 31. Bxb4 {[%clk 0:00:53]}  Nd7 {[%clk 0:00:10]} 32. Qxd7+ {[%clk 0:00:51]}  Qxd7 {[%clk 0:00:10]} 33. Rxf8# {[%clk 0:00:52]} 1-0

[Event "January 9 Late 2024"]
[Site "https://www.chess.com"]
[Date "2024.01.09"]
[Round "1"]
[White "Velikanov, Alexander"]
[Black "Joie, Sebastien"]
[Result "1-0"]
[Board "94"]
[TimeControl "180+1"]
[WhiteFideId "2039290"]
[BlackFideId "650420"]
[WhiteElo "2798"]
[BlackElo "2451"]
[WhiteTeam "USA"]
[BlackTeam "FRA"]
[WhiteClock "0:00:34"]
[BlackClock "0:00:00"]

1. e4 {[%clk 0:02:58]}  c5 {[%clk 0:03:00]} 2. c3 {[%clk 0:02:57]}  d5 {[%clk 0:02:59]} 3. exd5 {[%clk 0:02:57]}  Qxd5 {[%clk 0:03:00]} 4. d4 {[%clk 0:02:58]}  Nc6 {[%clk 0:03:01]} 5. Nf3 {[%clk 0:02:58]}  Bg4 {[%clk 0:03:02]} 6. dxc5 {[%clk 0:02:57]}  Qxd1+ {[%clk 0:03:03]} 7. Kxd1 {[%clk 0:02:57]}  e6 {[%clk 0:03:03]} 8. Be3 {[%clk 0:02:57]}  Nge7 {[%clk 0:03:00]} 9. Nd2 {[%clk 0:02:53]}  Nf5 {[%clk 0:02:50]} 10. b4 {[%clk 0:02:45]}  a5 {[%clk 0:02:41]} 11. Bb5 {[%clk 0:02:44]}  Be7 {[%clk 0:02:10]} 12. Kc2 {[%clk 0:02:39]}  Bf6 {[%clk 0:01:57]} 13. Nd4 {[%clk 0:02:25]}  Nxd4+ {[%clk 0:01:25]} 14. Bxd4 {[%clk 0:02:25]}  axb4 {[%clk 0:01:04]} 15. Bxf6 {[%clk 0:02:22]}  Bf5+ {[%clk 0:00:47]} 16. Kb3 {[%clk 0:02:10]}  Ra3+ {[%clk 0:00:27]} 17. Kc4 {[%clk 0:02:10]}  gxf6 {[%clk 0:00:25]} 18. Bxc6+ {[%clk 0:01:50]}  bxc6 {[%clk 0:00:26]} 19. Kxb4 {[%clk 0:01:47]}  Ra7 {[%clk 0:00:23]} 20. Nc4 {[%clk 0:01:48]}  Ke7 {[%clk 0:00:20]} 21. a4 {[%clk 0:01:45]}  Rb8+ {[%clk 0:00:20]} 22. Nb6 {[%clk 0:01:46]}  Rd8 {[%clk 0:00:21]} 23. Rhd1 {[%clk 0:01:45]}  Bd3 {[%clk 0:00:18]} 24. Rd2 {[%clk 0:01:39]}  e5 {[%clk 0:00:17]} 25. Rad1 {[%clk 0:01:29]}  e4 {[%clk 0:00:17]} 26. g4 {[%clk 0:01:30]}  Rg8 {[%clk 0:00:08]} 27. f3 {[%clk 0:01:22]}  Ke6 {[%clk 0:00:05]} 28. fxe4 {[%clk 0:01:20]}  Bxe4 {[%clk 0:00:06]} 29. Rd6+ {[%clk 0:01:20]}  Ke5 {[%clk 0:00:06]} 30. h3 {[%clk 0:01:21]}  f5 {[%clk 0:00:05]} 31. Rf1 {[%clk 0:01:14]}  Bd5 {[%clk 0:00:02]} 32. Rxf5+ {[%clk 0:01:10]}  Ke4 {[%clk 0:00:03]} 33. Nxd5 {[%clk 0:00:42]}  cxd5 {[%clk 0:00:01]} 34. Rfxd5 {[%clk 0:00:43]}  Rb8+ {[%clk 0:00:01]} 35. Ka3 {[%clk 0:00:43]}  Rba8 {[%clk 0:00:01]} 36. Rd4+ {[%clk 0:00:43]}  Ke3 {[%clk 0:00:02]} 37. Kb4 {[%clk 0:00:44]}  Rb7+ {[%clk 0:00:02]} 38. Rb6 {[%clk 0:00:44]}  Rc7 {[%clk 0:00:02]} 39. a5 {[%clk 0:00:43]}  Rac8 {[%clk 0:00:03]} 40. Rc4 {[%clk 0:00:44]}  Kd3 {[%clk 0:00:03]} 41. c6 {[%clk 0:00:44]}  Ra8 {[%clk 0:00:03]} 42. a6 {[%clk 0:00:40]}  Rca7 {[%clk 0:00:03]} 43. Kb5 {[%clk 0:00:37]}  Re8 {[%clk 0:00:02]} 44. Rb7 {[%clk 0:00:34]}  Raa8 {[%clk 0:00:03]} 45. c7 {[%clk 0:00:34]}  Rac8 {[%clk 0:00:03]} 46. a7 {[%clk 0:00:33]}  Re5+ {[%clk 0:00:03]} 47. Rc5 {[%clk 0:00:34]}  Re6 {[%clk 0:00:00]} 48. Rb8 {[%clk 0:00:34]} 1-0

[Event "January 9 Late 2024"]
[Site "https://www.chess.com"]
[Date "2024.01.09"]
[Round "1"]
[White "Nilsen, Tobias Lang"]
[Black "Khamrakulov, Djurabek"]
[Result "1/2-1/2"]
[Board "95"]
[TimeControl "180+1"]
[WhiteFideId "1521624"]
[BlackFideId "14201143"]
[WhiteElo "2451"]
[BlackElo "2797"]
[WhiteTeam "NOR"]
[BlackTeam "UZB"]
[WhiteClock "0:01:25"]
[BlackClock "0:01:53"]

1. e4 {[%clk 0:03:00]}  e5 {[%clk 0:02:57]} 2. Nf3 {[%clk 0:03:01]}  Nf6 {[%clk 0:02:57]} 3. Nxe5 {[%clk 0:02:57]}  d6 {[%clk 0:02:57]} 4. Nf3 {[%clk 0:02:56]}  Nxe4 {[%clk 0:02:58]} 5. d4 {[%clk 0:02:57]}  d5 {[%clk 0:02:58]} 6. Bd3 {[%clk 0:02:57]}  Bd6 {[%clk 0:02:58]} 7. O-O {[%clk 0:02:58]}  O-O {[%clk 0:02:58]} 8. Re1 {[%clk 0:02:58]}  Bf5 {[%clk 0:02:53]} 9. c4 {[%clk 0:02:58]}  c6 {[%clk 0:02:53]} 10. Nc3 {[%clk 0:02:58]}  Nxc3 {[%clk 0:02:52]} 11. bxc3 {[%clk 0:02:59]}  Bxd3 {[%clk 0:02:52]} 12. Qxd3 {[%clk 0:03:00]}  dxc4 {[%clk 0:02:52]} 13. Qxc4 {[%clk 0:03:00]}  Nd7 {[%clk 0:02:52]} 14. Bg5 {[%clk 0:03:00]}  Qc7 {[%clk 0:02:50]} 15. Be7 {[%clk 0:03:00]}  Bxe7 {[%clk 0:02:48]} 16. Rxe7 {[%clk 0:03:01]}  Rae8 {[%clk 0:02:47]} 17. Rae1 {[%clk 0:02:53]}  Rxe7 {[%clk 0:02:47]} 18. Rxe7 {[%clk 0:02:54]}  Qd6 {[%clk 0:02:48]} 19. Re1 {[%clk 0:02:52]}  Nb6 {[%clk 0:02:39]} 20. Qd3 {[%clk 0:02:48]}  h6 {[%clk 0:02:38]} 21. c4 {[%clk 0:02:36]}  Nd7 {[%clk 0:02:35]} 22. Qf5 {[%clk 0:02:31]}  Rd8 {[%clk 0:02:32]} 23. c5 {[%clk 0:02:22]}  Qf6 {[%clk 0:02:29]} 24. Qxf6 {[%clk 0:02:10]}  Nxf6 {[%clk 0:02:29]} 25. Re7 {[%clk 0:02:08]}  Nd7 {[%clk 0:02:28]} 26. Kf1 {[%clk 0:02:00]}  Kf8 {[%clk 0:02:28]} 27. Re3 {[%clk 0:02:00]}  Nf6 {[%clk 0:02:28]} 28. Ra3 {[%clk 0:02:00]}  a6 {[%clk 0:02:25]} 29. Rb3 {[%clk 0:02:00]}  Rd7 {[%clk 0:02:24]} 30. Ne5 {[%clk 0:01:57]}  Rc7 {[%clk 0:02:21]} 31. Nc4 {[%clk 0:01:57]}  Rd7 {[%clk 0:02:18]} 32. Nd6 {[%clk 0:01:56]}  b5 {[%clk 0:02:17]} 33. cxb6 {[%clk 0:01:47]}  Rxd6 {[%clk 0:02:17]} 34. b7 {[%clk 0:01:48]}  Nd7 {[%clk 0:02:17]} 35. b8=Q+ {[%clk 0:01:48]}  Nxb8 {[%clk 0:02:17]} 36. Rxb8+ {[%clk 0:01:49]}  Ke7 {[%clk 0:02:17]} 37. Rb6 {[%clk 0:01:47]}  Rxd4 {[%clk 0:02:10]} 38. Rxa6 {[%clk 0:01:44]}  Rc4 {[%clk 0:02:07]} 39. Ke2 {[%clk 0:01:41]}  Rc2+ {[%clk 0:02:07]} 40. Ke3 {[%clk 0:01:41]}  g5 {[%clk 0:02:06]} 41. h3 {[%clk 0:01:40]}  f5 {[%clk 0:02:05]} 42. Ra7+ {[%clk 0:01:33]}  Ke6 {[%clk 0:02:05]} 43. Rh7 {[%clk 0:01:29]}  Rxa2 {[%clk 0:02:02]} 44. Rxh6+ {[%clk 0:01:29]}  Kd5 {[%clk 0:02:02]} 45. Rg6 {[%clk 0:01:28]}  Ra3+ {[%clk 0:02:00]} 46. Ke2 {[%clk 0:01:28]}  Ra2+ {[%clk 0:02:00]} 47. Ke3 {[%clk 0:01:26]}  Ra3+ {[%clk 0:01:56]} 48. Ke2 {[%clk 0:01:26]}  Ra2+ {[%clk 0:01:53]} 49. Ke3 {[%clk 0:01:25]} 1/2-1/2

[Event "January 9 Late 2024"]
[Site "https://www.chess.com"]
[Date "2024.01.09"]
[Round "1"]
[White "Sokolovsky, Yahli"]
[Black "Boraso, Alessio"]
[Result "1-0"]
[Board "98"]
[TimeControl "180+1"]
[WhiteFideId "2820242"]
[BlackFideId "848077"]
[WhiteElo "2776"]
[BlackElo "2450"]
[WhiteTeam "ISR"]
[BlackTeam "ITA"]
[WhiteClock "0:00:08"]
[BlackClock "0:00:06"]

1. b3 {[%clk 0:03:00]}  a5 {[%clk 0:02:58]} 2. Bb2 {[%clk 0:03:00]}  a4 {[%clk 0:02:59]} 3. b4 {[%clk 0:03:00]}  e6 {[%clk 0:02:59]} 4. a3 {[%clk 0:03:00]}  Nf6 {[%clk 0:02:59]} 5. c4 {[%clk 0:02:58]}  b6 {[%clk 0:03:00]} 6. d4 {[%clk 0:02:55]}  d5 {[%clk 0:02:57]} 7. c5 {[%clk 0:02:55]}  b5 {[%clk 0:02:57]} 8. e4 {[%clk 0:02:45]}  Nxe4 {[%clk 0:02:54]} 9. Bxb5+ {[%clk 0:02:46]}  c6 {[%clk 0:02:55]} 10. Bd3 {[%clk 0:02:36]}  Ba6 {[%clk 0:02:55]} 11. Qxa4 {[%clk 0:02:19]}  Qg5 {[%clk 0:02:25]} 12. g3 {[%clk 0:02:01]}  Be7 {[%clk 0:02:10]} 13. b5 {[%clk 0:02:00]}  cxb5 {[%clk 0:02:00]} 14. Bxb5+ {[%clk 0:01:59]}  Bxb5 {[%clk 0:02:01]} 15. Qxb5+ {[%clk 0:01:59]}  Nd7 {[%clk 0:01:57]} 16. c6 {[%clk 0:01:53]}  Ndf6 {[%clk 0:01:54]} 17. c7+ {[%clk 0:01:51]}  Nd7 {[%clk 0:01:53]} 18. Nf3 {[%clk 0:01:39]}  Qf5 {[%clk 0:01:53]} 19. Nbd2 {[%clk 0:01:37]}  Nd6 {[%clk 0:01:41]} 20. Qc6 {[%clk 0:01:31]}  Rc8 {[%clk 0:01:40]} 21. Ne5 {[%clk 0:01:27]}  O-O {[%clk 0:01:38]} 22. Nxd7 {[%clk 0:01:26]}  Ne4 {[%clk 0:01:35]} 23. Nxe4 {[%clk 0:01:20]}  Qxe4+ {[%clk 0:01:36]} 24. Kd2 {[%clk 0:01:20]}  Qf3 {[%clk 0:01:29]} 25. Nxf8 {[%clk 0:01:06]}  Qxf2+ {[%clk 0:01:24]} 26. Kc3 {[%clk 0:01:06]}  Bf6 {[%clk 0:01:12]} 27. Rhd1 {[%clk 0:01:00]}  Kxf8 {[%clk 0:01:13]} 28. Qd7 {[%clk 0:00:43]}  Qe3+ {[%clk 0:01:03]} 29. Rd3 {[%clk 0:00:44]}  Bxd4+ {[%clk 0:01:03]} 30. Kb4 {[%clk 0:00:24]}  Bc5+ {[%clk 0:01:00]} 31. Kb5 {[%clk 0:00:24]}  Qxd3+ {[%clk 0:00:58]} 32. Kxc5 {[%clk 0:00:25]}  Qc4+ {[%clk 0:00:32]} 33. Kb6 {[%clk 0:00:25]}  Qb3+ {[%clk 0:00:26]} 34. Ka7 {[%clk 0:00:26]}  Qe3+ {[%clk 0:00:17]} 35. Kb7 {[%clk 0:00:26]}  Re8 {[%clk 0:00:15]} 36. Qxe8+ {[%clk 0:00:20]}  Kxe8 {[%clk 0:00:15]} 37. c8=Q+ {[%clk 0:00:21]}  Ke7 {[%clk 0:00:16]} 38. Qc7+ {[%clk 0:00:21]}  Ke8 {[%clk 0:00:16]} 39. Qc6+ {[%clk 0:00:21]}  Ke7 {[%clk 0:00:16]} 40. Rc1 {[%clk 0:00:18]}  d4 {[%clk 0:00:12]} 41. Qc5+ {[%clk 0:00:17]}  Ke8 {[%clk 0:00:10]} 42. Qxd4 {[%clk 0:00:12]}  Qb3+ {[%clk 0:00:11]} 43. Ka7 {[%clk 0:00:09]}  f6 {[%clk 0:00:07]} 44. Qb4 {[%clk 0:00:06]}  Qd5 {[%clk 0:00:06]} 45. Qb8+ {[%clk 0:00:06]}  Kf7 {[%clk 0:00:06]} 46. Qb7+ {[%clk 0:00:07]}  Kg6 {[%clk 0:00:06]} 47. Qxd5 {[%clk 0:00:07]}  exd5 {[%clk 0:00:06]} 48. Kb6 {[%clk 0:00:08]} 1-0

[Event "January 9 Late 2024"]
[Site "https://www.chess.com"]
[Date "2024.01.09"]
[Round "1"]
[White "Krzyzanowski, Marcin"]
[Black "Peycheva, Gergana"]
[Result "1-0"]
[Board "100"]
[TimeControl "180+1"]
[WhiteFideId "1132199"]
[BlackFideId "2916711"]
[WhiteElo "2770"]
[BlackElo "2449"]
[WhiteTeam "POL"]
[BlackTeam "BUL"]
[WhiteClock "0:00:53"]
[BlackClock "0:00:13"]

1. e4 {[%clk 0:03:00]}  c5 {[%clk 0:02:59]} 2. Nf3 {[%clk 0:03:00]}  Nc6 {[%clk 0:02:59]} 3. d4 {[%clk 0:03:00]}  cxd4 {[%clk 0:02:59]} 4. Nxd4 {[%clk 0:03:01]}  g6 {[%clk 0:02:59]} 5. c4 {[%clk 0:03:01]}  Nf6 {[%clk 0:02:58]} 6. Nc3 {[%clk 0:03:00]}  Nxd4 {[%clk 0:02:58]} 7. Qxd4 {[%clk 0:03:00]}  d6 {[%clk 0:02:58]} 8. f3 {[%clk 0:03:00]}  Bg7 {[%clk 0:02:58]} 9. Be3 {[%clk 0:03:01]}  O-O {[%clk 0:02:57]} 10. Qd2 {[%clk 0:03:01]}  Be6 {[%clk 0:02:55]} 11. Rc1 {[%clk 0:03:02]}  Qa5 {[%clk 0:02:55]} 12. b3 {[%clk 0:03:01]}  Rfc8 {[%clk 0:02:54]} 13. Bd3 {[%clk 0:03:01]}  a6 {[%clk 0:02:49]} 14. Ne2 {[%clk 0:03:01]}  Qxd2+ {[%clk 0:02:47]} 15. Kxd2 {[%clk 0:03:02]}  b5 {[%clk 0:02:46]} 16. Nd4 {[%clk 0:02:27]}  bxc4 {[%clk 0:02:34]} 17. Nxe6 {[%clk 0:02:27]}  fxe6 {[%clk 0:02:04]} 18. Rxc4 {[%clk 0:02:20]}  d5 {[%clk 0:01:55]} 19. Rxc8+ {[%clk 0:02:20]}  Rxc8 {[%clk 0:01:55]} 20. Rc1 {[%clk 0:02:15]}  Rd8 {[%clk 0:01:27]} 21. e5 {[%clk 0:02:03]}  Ne4+ {[%clk 0:01:25]} 22. Ke2 {[%clk 0:01:58]}  d4 {[%clk 0:01:01]} 23. Bxd4 {[%clk 0:01:00]}  Rxd4 {[%clk 0:00:58]} 24. fxe4 {[%clk 0:00:56]}  a5 {[%clk 0:00:42]} 25. Rc5 {[%clk 0:00:49]}  a4 {[%clk 0:00:40]} 26. Ke3 {[%clk 0:00:50]}  Rb4 {[%clk 0:00:40]} 27. Bc4 {[%clk 0:00:50]}  axb3 {[%clk 0:00:24]} 28. Bxe6+ {[%clk 0:00:50]}  Kh8 {[%clk 0:00:13]} 29. Rc8+ {[%clk 0:00:51]}  Bf8 {[%clk 0:00:14]} 30. Rxf8+ {[%clk 0:00:52]}  Kg7 {[%clk 0:00:14]} 31. Rg8+ {[%clk 0:00:53]}  Kh6 {[%clk 0:00:13]} 32. Bxb3 {[%clk 0:00:53]} 1-0

[Event "January 9 Late 2024"]
[Site "https://www.chess.com"]
[Date "2024.01.09"]
[Round "1"]
[White "Kazmaier, Daniel"]
[Black "Kozak, Antoni"]
[Result "1/2-1/2"]
[Board "101"]
[TimeControl "180+1"]
[WhiteFideId "2606089"]
[BlackFideId "21832030"]
[WhiteElo "2448"]
[BlackElo "2767"]
[WhiteTeam "CAN"]
[BlackTeam "POL"]
[WhiteClock "0:00:05"]
[BlackClock "0:00:44"]

1. d4 {[%clk 0:02:55]}  g6 {[%clk 0:02:56]} 2. Nc3 {[%clk 0:02:54]}  Bg7 {[%clk 0:02:56]} 3. Bf4 {[%clk 0:02:53]}  d6 {[%clk 0:02:55]} 4. Nf3 {[%clk 0:02:53]}  Nc6 {[%clk 0:02:55]} 5. Qd2 {[%clk 0:02:49]}  Nf6 {[%clk 0:02:55]} 6. Bh6 {[%clk 0:02:48]}  O-O {[%clk 0:02:53]} 7. O-O-O {[%clk 0:02:45]}  Bg4 {[%clk 0:02:50]} 8. h3 {[%clk 0:02:40]}  Bxf3 {[%clk 0:02:50]} 9. exf3 {[%clk 0:02:40]}  e5 {[%clk 0:02:50]} 10. Bxg7 {[%clk 0:02:38]}  Kxg7 {[%clk 0:02:49]} 11. dxe5 {[%clk 0:02:34]}  Nxe5 {[%clk 0:02:45]} 12. f4 {[%clk 0:02:31]}  Ned7 {[%clk 0:02:43]} 13. g4 {[%clk 0:02:30]}  Re8 {[%clk 0:02:41]} 14. Bg2 {[%clk 0:02:27]}  Rb8 {[%clk 0:02:42]} 15. Bf3 {[%clk 0:02:22]}  b5 {[%clk 0:02:42]} 16. h4 {[%clk 0:02:15]}  b4 {[%clk 0:02:41]} 17. Nd5 {[%clk 0:02:15]}  Nxd5 {[%clk 0:02:41]} 18. Qxd5 {[%clk 0:02:16]}  Qf6 {[%clk 0:02:41]} 19. Qd4 {[%clk 0:01:55]}  Nc5 {[%clk 0:02:41]} 20. h5 {[%clk 0:01:50]}  Qxd4 {[%clk 0:02:40]} 21. h6+ {[%clk 0:01:44]}  Kf8 {[%clk 0:02:39]} 22. Rxd4 {[%clk 0:01:44]}  a5 {[%clk 0:02:39]} 23. Kd2 {[%clk 0:01:28]}  Ne6 {[%clk 0:02:37]} 24. Rc4 {[%clk 0:01:26]}  c5 {[%clk 0:02:37]} 25. Bd5 {[%clk 0:01:15]}  Nc7 {[%clk 0:02:34]} 26. Bc6 {[%clk 0:01:14]}  Red8 {[%clk 0:02:34]} 27. g5 {[%clk 0:01:06]}  Ne6 {[%clk 0:02:33]} 28. Bd5 {[%clk 0:01:04]}  Nc7 {[%clk 0:02:34]} 29. Bc6 {[%clk 0:01:04]}  Rb6 {[%clk 0:02:34]} 30. Bf3 {[%clk 0:01:02]}  Ne6 {[%clk 0:02:35]} 31. Bd5 {[%clk 0:01:00]}  Nc7 {[%clk 0:02:35]} 32. Bf3 {[%clk 0:01:00]}  f5 {[%clk 0:02:24]} 33. Re1 {[%clk 0:00:58]}  Rbb8 {[%clk 0:02:18]} 34. Bc6 {[%clk 0:00:50]}  Rb6 {[%clk 0:02:17]} 35. Bf3 {[%clk 0:00:50]}  Re8 {[%clk 0:02:18]} 36. Rxe8+ {[%clk 0:00:47]}  Kxe8 {[%clk 0:02:17]} 37. c3 {[%clk 0:00:47]}  bxc3+ {[%clk 0:02:16]} 38. Kxc3 {[%clk 0:00:47]}  Nb5+ {[%clk 0:02:17]} 39. Kd3 {[%clk 0:00:45]}  Nd4 {[%clk 0:02:17]} 40. Rxd4 {[%clk 0:00:41]}  cxd4 {[%clk 0:02:18]} 41. b3 {[%clk 0:00:42]}  Rb4 {[%clk 0:02:11]} 42. Bd5 {[%clk 0:00:41]}  Kf8 {[%clk 0:01:54]} 43. a3 {[%clk 0:00:40]}  Rb5 {[%clk 0:01:52]} 44. Kxd4 {[%clk 0:00:39]}  Rc5 {[%clk 0:01:52]} 45. Bc4 {[%clk 0:00:39]}  Ke7 {[%clk 0:01:51]} 46. b4 {[%clk 0:00:33]}  axb4 {[%clk 0:01:51]} 47. axb4 {[%clk 0:00:34]}  Rc8 {[%clk 0:01:44]} 48. f3 {[%clk 0:00:34]}  Ra8 {[%clk 0:01:43]} 49. b5 {[%clk 0:00:30]}  Ra1 {[%clk 0:01:42]} 50. Bg8 {[%clk 0:00:28]}  Kf8 {[%clk 0:01:33]} 51. Bb3 {[%clk 0:00:25]}  Rb1 {[%clk 0:01:31]} 52. Kc3 {[%clk 0:00:23]}  Ke7 {[%clk 0:01:29]} 53. b6 {[%clk 0:00:20]}  Kd7 {[%clk 0:01:20]} 54. b7 {[%clk 0:00:20]}  Rxb3+ {[%clk 0:01:12]} 55. Kxb3 {[%clk 0:00:19]}  Kc7 {[%clk 0:01:13]} 56. Kc4 {[%clk 0:00:18]}  Kxb7 {[%clk 0:01:13]} 57. Kd5 {[%clk 0:00:18]}  Kc7 {[%clk 0:01:14]} 58. Ke6 {[%clk 0:00:18]}  Kc6 {[%clk 0:01:14]} 59. Kf7 {[%clk 0:00:19]}  d5 {[%clk 0:01:15]} 60. Kg7 {[%clk 0:00:20]}  d4 {[%clk 0:01:16]} 61. Kxh7 {[%clk 0:00:21]}  d3 {[%clk 0:01:17]} 62. Kxg6 {[%clk 0:00:21]}  d2 {[%clk 0:01:17]} 63. h7 {[%clk 0:00:22]}  d1=Q {[%clk 0:01:18]} 64. h8=Q {[%clk 0:00:23]}  Qxf3 {[%clk 0:01:16]} 65. Qf6+ {[%clk 0:00:23]}  Kd7 {[%clk 0:01:15]} 66. Qxf5+ {[%clk 0:00:24]}  Ke8 {[%clk 0:01:13]} 67. Qe5+ {[%clk 0:00:25]}  Kf8 {[%clk 0:01:11]} 68. f5 {[%clk 0:00:24]}  Qd3 {[%clk 0:01:00]} 69. Kf6 {[%clk 0:00:23]}  Qd7 {[%clk 0:00:57]} 70. Qc5+ {[%clk 0:00:16]}  Ke8 {[%clk 0:00:43]} 71. g6 {[%clk 0:00:10]}  Qd6+ {[%clk 0:00:44]} 72. Qxd6 {[%clk 0:00:05]} 1/2-1/2